bitfinex/quotes_BTCUSD_20250303
["timestamp","ask_amount","ask_price","bid_price","bid_amount"]
[1740987204763,0.31967125,92392.0,92391.0,0.32788105]
[1740987204901,0.48202225,92392.0,92391.0,0.02788105]
[1740987205333,0.48202225,92392.0,92391.0,0.0133402]
[1740987205963,0.31967125,92392.0,92391.0,0.0133402]
[1740987206297,0.48202225,92392.0,92391.0,0.0133402]
[1740987207041,0.44637125,92392.0,92391.0,0.0133402]
[1740987207258,0.44637125,92392.0,92391.0,0.02788105]
[1740987208130,0.60872225,92392.0,92391.0,0.02788105]
[1740987208298,0.60872225,92392.0,92391.0,0.01488105]
[1740987208680,0.60872225,92392.0,92391.0,0.0003402]
[1740987209069,0.60872225,92392.0,92391.0,0.0033402]
[1740987209267,0.44637125,92392.0,92391.0,0.02388105]
[1740987209494,0.44637125,92392.0,92391.0,0.18623405]
[1740987209719,0.36947125,92392.0,92391.0,0.02388105]
[1740987210343,0.53182225,92392.0,92391.0,0.02388105]
[1740987210507,0.36947125,92392.0,92391.0,0.02388105]
[1740987211377,0.31967125,92392.0,92391.0,0.18623405]
[1740987211920,0.31967125,92392.0,92391.0,0.48623405]
[1740987212330,0.48202225,92392.0,92391.0,0.02388105]
[1740987212760,0.48202225,92392.0,92391.0,0.18623405]
[1740987212761,0.31967125,92392.0,92391.0,0.18623405]
[1740987213638,0.31967125,92392.0,92391.0,0.02388105]
[1740987213881,0.48202225,92392.0,92391.0,0.02388105]
[1740987214734,0.48202225,92392.0,92391.0,0.0093402]
[1740987215132,0.64140487,92392.0,92391.0,0.0093402]
[1740987215888,0.66314188,92392.0,92391.0,0.0093402]
[1740987217471,0.71314188,92392.0,92391.0,0.0036335]
[1740987217692,0.162404,92362.0,92361.0,0.0003402]
[1740987218104,0.48307525,92362.0,92361.0,0.0003402]
[1740987218306,0.48207525,92362.0,92361.0,0.0003402]
[1740987218558,0.54323285,92362.0,92361.0,0.0003402]
[1740987218722,0.54323285,92362.0,92340.0,0.09748561]
[1740987218723,0.244941,92341.0,92340.0,0.09748561]
[1740987218929,0.162474,92322.0,92321.0,0.09748561]
[1740987219136,0.48214525,92322.0,92321.0,0.09760581]
[1740987219314,0.31967125,92322.0,92321.0,0.09760581]
[1740987219515,0.31967125,92322.0,92321.0,0.26008181]
[1740987220834,0.31967125,92322.0,92321.0,0.27462266]
[1740987221538,0.32067125,92322.0,92321.0,0.28062266]
[1740987221739,0.32067125,92322.0,92321.0,0.18313705]
[1740987221926,0.48314525,92322.0,92321.0,0.02066105]
[1740987222140,0.48214525,92322.0,92321.0,0.01466105]
[1740987222339,0.31967125,92322.0,92321.0,0.0001202]
[1740987222689,0.31967125,92322.0,92321.0,0.1625962]
[1740987223029,0.31967125,92322.0,92321.0,0.17713705]
[1740987223233,0.32067125,92322.0,92321.0,0.18413705]
[1740987223471,0.32067125,92322.0,92321.0,0.48413705]
[1740987223676,0.001,92322.0,92321.0,0.48413705]
[1740987223832,0.31967125,92339.0,92338.0,0.162446]
[1740987224057,0.31967125,92339.0,92338.0,0.47698685]
[1740987224528,0.31967125,92339.0,92338.0,0.48793756]
[1740987224821,0.31967125,92353.0,92352.0,0.17696285]
[1740987225198,0.31967125,92353.0,92352.0,0.47696285]
[1740987225542,0.31967125,92353.0,92352.0,0.31454085]
[1740987225739,0.31967125,92353.0,92325.0,0.0215731]
[1740987225937,0.001,92352.0,92325.0,0.2381981]
[1740987226079,0.44567125,92351.0,92338.0,0.0001202]
[1740987226280,0.001,92350.0,92343.0,0.01454085]
[1740987226551,0.001,92350.0,92339.0,0.162443]
[1740987226844,0.001,92350.0,92338.0,0.0001202]
[1740987226845,0.162434,92345.0,92340.0,0.01454085]
[1740987227023,0.001,92344.0,92340.0,0.01454085]
[1740987227199,0.001,92347.0,92343.0,0.162436]
[1740987227406,0.001,92347.0,92338.0,0.3001202]
[1740987227407,0.001,92347.0,92338.0,0.0001202]
[1740987227632,0.162444,92339.0,92338.0,0.0001202]
[1740987227868,0.163444,92339.0,92338.0,0.0001202]
[1740987228239,0.001,92339.0,92338.0,0.0001202]
[1740987228646,0.163444,92339.0,92338.0,0.0001202]
[1740987229235,0.001,92339.0,92338.0,0.0001202]
[1740987229579,0.001,92340.0,92339.0,0.162444]
[1740987229782,0.163436,92344.0,92338.0,0.17710705]
[1740987229958,0.001,92344.0,92339.0,0.162444]
[1740987230164,0.001,92344.0,92338.0,0.0001202]
[1740987230544,0.162437,92343.0,92338.0,0.0001202]
[1740987230842,0.001,92343.0,92338.0,0.0001202]
[1740987231050,0.001,92343.0,92342.0,0.17697985]
[1740987231249,0.31967125,92346.0,92345.0,0.17697485]
[1740987232277,0.31967125,92346.0,92345.0,0.01454085]
[1740987233052,0.48210325,92346.0,92345.0,0.01454085]
[1740987233263,0.31967125,92346.0,92345.0,0.01454085]
[1740987233464,0.31967125,92346.0,92345.0,0.17697485]
[1740987235180,0.31967125,92346.0,92338.0,0.0004604]
[1740987235409,0.162444,92339.0,92338.0,0.0004604]
[1740987235976,0.32067125,92339.0,92338.0,0.0004604]
[1740987236180,0.31967125,92339.0,92338.0,0.0004604]
[1740987236482,0.48211525,92339.0,92338.0,0.0004604]
[1740987236973,0.48211525,92339.0,92334.0,0.25814978]
[1740987237168,0.001,92338.0,92334.0,0.00012022]
[1740987237391,0.001,92338.0,92335.0,0.16245]
[1740987237680,0.31967125,92339.0,92336.0,0.216598]
[1740987237882,0.31967125,92339.0,92338.0,0.162446]
[1740987238924,0.31967125,92339.0,92334.0,0.21672422]
[1740987239144,0.001,92338.0,92337.0,0.01454085]
[1740987239334,0.001,92338.0,92335.0,0.01454085]
[1740987239511,0.001,92338.0,92335.0,0.23114285]
[1740987239717,0.31967125,92339.0,92335.0,0.23114285]
[1740987239718,0.31967125,92339.0,92338.0,0.17698685]
[1740987241154,0.31967125,92339.0,92336.0,0.3]
[1740987241367,0.001,92338.0,92336.0,0.3]
[1740987241711,0.163447,92338.0,92337.0,0.01454085]
[1740987241907,0.48311825,92338.0,92337.0,0.01454085]
[1740987242159,0.48311825,92338.0,92334.0,0.00012022]
[1740987242160,0.162451,92335.0,92334.0,0.00012022]
[1740987242360,0.163451,92335.0,92334.0,0.00012022]
[1740987242522,0.001,92335.0,92334.0,0.00012022]
[1740987243279,0.001,92337.0,92334.0,0.00012022]
[1740987243678,0.001,92337.0,92334.0,0.16257222]
[1740987244077,0.31967125,92338.0,92334.0,0.21672322]
[1740987244294,0.31967125,92338.0,92337.0,0.162448]
[1740987244504,0.31967125,92338.0,92337.0,0.17698885]
[1740987246044,0.31967125,92338.0,92337.0,0.01454085]
[1740987247299,0.31924075,92338.0,92337.0,0.01454085]
[1740987247882,0.31924075,92338.0,92334.0,0.00046062]
[1740987248097,0.162451,92335.0,92334.0,0.00046062]
[1740987248296,0.210151,92335.0,92334.0,0.00046062]
[1740987248695,0.52939175,92335.0,92334.0,0.00046062]
[1740987248901,0.52839175,92335.0,92334.0,0.00046062]
[1740987250483,0.58673062,92335.0,92334.0,0.00046062]
[1740987250682,0.74536764,92335.0,92334.0,0.00046062]
[1740987250884,0.162487,92315.0,92305.0,0.0003404]
[1740987251086,0.55792775,92315.0,92314.0,0.00046064]
[1740987252160,0.65722775,92315.0,92314.0,0.00046064]
[1740987253302,0.67864348,92315.0,92314.0,0.00046064]
[1740987253927,0.68933032,92315.0,92314.0,0.00046064]
[1740987255546,0.63933032,92315.0,92314.0,0.00046064]
[1740987256112,0.68933032,92315.0,92314.0,0.00046064]
[1740987256316,0.63933032,92315.0,92314.0,0.00046064]
[1740987256696,0.68933032,92315.0,92314.0,0.00046064]
[1740987258305,0.63933032,92315.0,92314.0,0.00046064]
[1740987259489,0.53102775,92315.0,92314.0,0.00046064]
[1740987259689,0.31924075,92315.0,92314.0,0.00046064]
[1740987259890,0.48172775,92315.0,92314.0,0.00046064]
[1740987261463,0.31924075,92315.0,92314.0,0.00046064]
[1740987261578,0.31924075,92315.0,92314.0,0.16294864]
[1740987261775,0.31924075,92315.0,92314.0,0.00046064]
[1740987262033,0.31924075,92315.0,92314.0,0.16294864]
[1740987262638,0.31924075,92315.0,92314.0,0.17748949]
[1740987262996,0.31924075,92315.0,92314.0,0.01500149]
[1740987263432,0.31924075,92315.0,92314.0,0.17748949]
[1740987263734,0.31924075,92315.0,92314.0,0.47748949]
[1740987264344,0.31924075,92325.0,92324.0,0.47701185]
[1740987264848,0.05,92353.0,92321.0,0.216635]
[1740987264849,0.31924075,92345.0,92334.0,0.47699385]
[1740987265047,0.0753,92366.0,92334.0,0.47699385]
[1740987265048,0.32024075,92344.0,92334.0,0.47699385]
[1740987265323,0.31924075,92344.0,92334.0,0.31454085]
[1740987265540,0.001,92343.0,92334.0,0.47699385]
[1740987265711,0.31924075,92344.0,92334.0,0.47699385]
[1740987266294,0.001,92343.0,92334.0,0.47699385]
[1740987266610,0.31924075,92344.0,92334.0,0.47699385]
[1740987267012,0.001,92343.0,92334.0,0.47699385]
[1740987267253,0.001,92343.0,92334.0,0.31447185]
[1740987267434,0.001,92343.0,92334.0,0.47692485]
[1740987268937,0.31941095,92335.0,92334.0,0.47692485]
[1740987269178,0.31941095,92335.0,92334.0,0.31447185]
[1740987269387,0.31941095,92335.0,92334.0,0.299931]
[1740987269946,0.31941095,92335.0,92334.0,0.462384]
[1740987270152,0.31941095,92335.0,92334.0,0.299931]
[1740987270372,0.48186195,92335.0,92334.0,0.299931]
[1740987270577,0.31941095,92335.0,92304.0,0.081]
[1740987270746,0.31941095,92335.0,92334.0,0.162453]
[1740987270945,0.31941095,92335.0,92334.0,0.17699385]
[1740987271355,0.31941095,92335.0,92334.0,0.01454085]
[1740987271708,0.31941095,92335.0,92331.0,0.3]
[1740987272006,0.001,92334.0,92331.0,0.3]
[1740987272209,0.001,92334.0,92332.0,0.01454085]
[1740987272732,0.162455,92333.0,92328.0,0.3]
[1740987272943,0.001,92332.0,92328.0,0.3]
[1740987273109,0.001,92332.0,92308.0,0.09108]
[1740987273110,0.162463,92329.0,92308.0,0.09108]
[1740987273369,0.32024075,92328.0,92308.0,0.09108]
[1740987273580,0.31924075,92328.0,92327.0,0.162466]
[1740987273708,0.31924075,92328.0,92327.0,0.462466]
[1740987274603,0.31924075,92328.0,92327.0,0.47700685]
[1740987275685,0.0001702,92335.0,92334.0,0.462453]
[1740987275897,0.31941095,92335.0,92334.0,0.47699385]
[1740987276913,0.31941095,92335.0,92334.0,0.48801806]
[1740987279386,0.31941095,92335.0,92334.0,0.47699385]
[1740987279590,0.31941095,92335.0,92334.0,0.48772115]
[1740987279831,0.31941095,92335.0,92334.0,0.47699385]
[1740987280048,0.31941095,92335.0,92334.0,0.31454085]
[1740987280440,0.31941095,92335.0,92334.0,0.47699385]
[1740987281415,0.31941095,92335.0,92334.0,0.47733425]
[1740987285412,0.0001702,92335.0,92334.0,0.56829425]
[1740987285608,0.0001702,92335.0,92334.0,0.55953425]
[1740987286228,0.0001702,92335.0,92334.0,0.67272516]
[1740987286411,0.0001702,92335.0,92334.0,0.58176516]
[1740987286609,0.0001702,92335.0,92334.0,0.67272516]
[1740987287201,0.0001702,92335.0,92334.0,0.58176516]
[1740987287664,0.0001702,92335.0,92334.0,0.67268516]
[1740987287878,0.0001702,92335.0,92334.0,0.65045425]
[1740987288320,0.0001702,92335.0,92334.0,0.55953425]
[1740987288526,0.0001702,92335.0,92334.0,0.65045425]
[1740987290585,2e-07,92335.0,92334.0,0.65045425]
[1740987291188,2e-07,92335.0,92334.0,0.65041425]
[1740987291374,2e-07,92335.0,92334.0,0.55953425]
[1740987291705,2e-07,92335.0,92334.0,0.65041425]
[1740987291913,2e-07,92335.0,92334.0,0.55953425]
[1740987292209,2e-07,92335.0,92334.0,0.65041425]
[1740987295850,2e-07,92335.0,92334.0,0.47733425]
[1740987296150,2e-07,92335.0,92334.0,0.56817425]
[1740987296493,2e-07,92335.0,92334.0,0.47733425]
[1740987296710,2e-07,92335.0,92334.0,0.4627934]
[1740987297122,2e-07,92335.0,92334.0,0.47733425]
[1740987297637,2e-07,92335.0,92334.0,0.4627934]
[1740987298064,2e-07,92335.0,92334.0,0.47733425]
[1740987299118,2e-07,92335.0,92334.0,0.56817425]
[1740987299767,2e-07,92335.0,92334.0,0.56813425]
[1740987300749,2e-07,92335.0,92334.0,0.47733425]
[1740987300952,2e-07,92335.0,92334.0,0.56813425]
[1740987301176,2e-07,92335.0,92334.0,0.64983425]
[1740987301756,2e-07,92335.0,92334.0,0.5535934]
[1740987301959,2e-07,92335.0,92334.0,0.4627934]
[1740987302360,2e-07,92335.0,92334.0,0.56813425]
[1740987302580,2e-07,92335.0,92334.0,0.5535934]
[1740987302981,2e-07,92335.0,92334.0,0.56813425]
[1740987304583,2e-07,92335.0,92334.0,0.47733425]
[1740987304789,2e-07,92335.0,92334.0,0.56809425]
[1740987305871,2e-07,92335.0,92334.0,0.47733425]
[1740987306089,2e-07,92335.0,92334.0,0.31488125]
[1740987306412,2e-07,92335.0,92334.0,0.3003404]
[1740987306956,2e-07,92335.0,92334.0,0.31488125]
[1740987307375,2e-07,92335.0,92334.0,0.0003404]
[1740987307576,0.0010002,92335.0,92334.0,0.0003404]
[1740987308125,0.0010002,92335.0,92334.0,0.31488125]
[1740987308284,2e-07,92335.0,92334.0,0.31488125]
[1740987309575,0.1624512,92335.0,92334.0,0.31488125]
[1740987309778,0.1624512,92335.0,92334.0,0.0003404]
[1740987309779,0.55759195,92335.0,92334.0,0.0003404]
[1740987310277,0.50543841,92335.0,92305.0,0.0003404]
[1740987310520,0.291087,92315.0,92305.0,0.0003404]
[1740987310696,0.61032775,92315.0,92305.0,0.0003404]
[1740987311096,0.61032775,92315.0,92306.0,0.01454085]
[1740987311728,0.61032775,92315.0,92305.0,0.0003404]
[1740987312190,0.62144364,92315.0,92305.0,0.0003404]
[1740987312593,0.67144364,92315.0,92305.0,0.0003404]
[1740987312909,0.285902,92306.0,92305.0,0.0003404]
[1740987313393,0.1234,92306.0,92305.0,0.01488125]
[1740987313756,0.1244,92306.0,92305.0,0.01488125]
[1740987314189,0.286902,92306.0,92305.0,0.0003404]
[1740987314390,0.1234,92306.0,92305.0,0.0003404]
[1740987314603,0.1244,92306.0,92305.0,0.17738525]
[1740987314795,0.1234,92306.0,92305.0,0.17738525]
[1740987315005,0.0451,92306.0,92305.0,0.17738525]
[1740987315759,0.0451,92306.0,92305.0,0.0003404]
[1740987316219,0.001,92314.0,92312.0,0.162492]
[1740987316460,0.31928076,92315.0,92314.0,0.17702885]
[1740987320126,0.31928076,92315.0,92314.0,0.01454085]
[1740987320452,0.48176776,92315.0,92314.0,0.01454085]
[1740987320654,0.48176776,92315.0,92298.0,0.0003404]
[1740987320655,0.162502,92306.0,92298.0,0.0003404]
[1740987320929,0.288202,92306.0,92298.0,0.0003404]
[1740987321131,0.1257,92306.0,92298.0,0.0003404]
[1740987321270,0.0452,92306.0,92305.0,0.1628444]
[1740987321615,0.0831,92314.0,92313.0,0.01454085]
[1740987321812,0.245588,92314.0,92313.0,0.01454085]
[1740987322226,0.0831,92314.0,92313.0,0.01454085]
[1740987322617,0.162502,92306.0,92305.0,0.0003404]
[1740987322825,0.163502,92306.0,92305.0,0.0003404]
[1740987323512,0.212802,92306.0,92305.0,0.0003404]
[1740987324084,0.291802,92306.0,92305.0,0.0003404]
[1740987324310,0.290802,92306.0,92305.0,0.0003404]
[1740987325243,0.61004275,92306.0,92305.0,0.0003404]
[1740987326178,0.63178194,92306.0,92305.0,0.0003404]
[1740987327522,0.68178194,92306.0,92305.0,0.0003404]
[1740987327736,0.162515,92299.0,92298.0,0.0003404]
[1740987327936,0.65865575,92299.0,92298.0,0.0003404]
[1740987328113,0.65765575,92299.0,92298.0,0.0003404]
[1740987329514,0.60765575,92299.0,92298.0,0.0003404]
[1740987329773,0.65765575,92299.0,92298.0,0.0003404]
[1740987330323,0.338415,92299.0,92298.0,0.0003404]
[1740987333666,0.44393696,92299.0,92298.0,0.0003404]
[1740987334069,0.49393696,92299.0,92298.0,0.0003404]
[1740987334493,0.388415,92299.0,92298.0,0.0003404]
[1740987335263,0.338415,92299.0,92298.0,0.0003404]
[1740987335517,0.388415,92299.0,92298.0,0.0003404]
[1740987335939,0.288415,92299.0,92298.0,0.0003404]
[1740987337037,0.0495,92299.0,92298.0,0.17739825]
[1740987337213,0.0832,92308.0,92298.0,0.17739825]
[1740987337214,0.001,92305.0,92299.0,0.01454085]
[1740987337581,0.162515,92299.0,92298.0,0.0003404]
[1740987337785,0.163515,92299.0,92298.0,0.0003404]
[1740987338183,0.001,92299.0,92298.0,0.0003404]
[1740987338428,0.001,92299.0,92298.0,0.17739825]
[1740987338636,0.02187946,92307.0,92299.0,0.01454085]
[1740987338637,0.001,92304.0,92299.0,0.01454085]
[1740987338958,0.162515,92299.0,92298.0,0.0003404]
[1740987339145,0.163515,92299.0,92298.0,0.0003404]
[1740987340287,0.340615,92299.0,92298.0,0.0003404]
[1740987340461,0.389615,92299.0,92298.0,0.0003404]
[1740987340636,0.42204206,92299.0,92298.0,0.0003404]
[1740987340838,0.389615,92299.0,92298.0,0.0003404]
[1740987341361,0.339615,92299.0,92298.0,0.0003404]
[1740987341567,0.389615,92299.0,92298.0,0.0003404]
[1740987343635,0.42207927,92299.0,92298.0,0.0003404]
[1740987346830,0.72207927,92299.0,92298.0,0.0003404]
[1740987347032,0.72207927,92299.0,92268.0,0.0003404]
[1740987347033,0.162568,92269.0,92268.0,0.0003404]
[1740987347173,0.163568,92269.0,92268.0,0.0003404]
[1740987347691,0.18494766,92269.0,92268.0,0.0003404]
[1740987348320,0.18494766,92269.0,92268.0,0.00074145]
[1740987349127,0.512569,92268.0,92267.0,6.5e-07]
[1740987349330,0.59505166,92268.0,92267.0,0.00012099]
[1740987350341,0.291898,92252.0,92251.0,0.0004]
[1740987350548,0.341898,92252.0,92251.0,0.00052036]
[1740987350751,0.05,92245.0,92244.0,0.00012036]
[1740987351109,0.260738,92229.0,92228.0,0.00012036]
[1740987351296,0.260738,92229.0,92228.0,0.00024077]
[1740987351874,0.28900407,92229.0,92228.0,0.00024077]
[1740987352078,0.428758,92229.0,92228.0,0.00024077]
[1740987352403,0.41130609,92229.0,92228.0,0.00024077]
[1740987352596,0.81130609,92229.0,92228.0,0.00024077]
[1740987352794,0.87241787,92229.0,92228.0,0.00024077]
[1740987352938,0.82241787,92229.0,92228.0,0.00024077]
[1740987353382,0.78965549,92229.0,92228.0,0.00024077]
[1740987353584,0.78965549,92229.0,92211.0,1e-08]
[1740987353585,0.05,92213.0,92211.0,1e-08]
[1740987353803,0.5216,92212.0,92211.0,1e-08]
[1740987354030,0.58171178,92212.0,92211.0,1e-08]
[1740987354260,0.162732,92176.0,92175.0,2.201e-05]
[1740987354396,0.001,92176.0,92175.0,2.201e-05]
[1740987354595,0.001,92191.0,92175.0,2.201e-05]
[1740987354911,0.216943,92190.0,92177.0,0.01454085]
[1740987355153,0.001,92189.0,92175.0,2.201e-05]
[1740987355312,0.162718,92184.0,92175.0,2.201e-05]
[1740987355497,0.001,92183.0,92175.0,0.00042353]
[1740987355677,0.001,92183.0,92181.0,0.162723]
[1740987355882,0.001,92183.0,92175.0,0.00042353]
[1740987355883,0.001,92210.0,92190.0,0.162707]
[1740987356082,0.162692,92199.0,92191.0,0.01454085]
[1740987356313,0.001,92198.0,92188.0,0.01454085]
[1740987356506,0.001,92198.0,92193.0,0.01454085]
[1740987356758,0.1627,92194.0,92187.0,0.01454085]
[1740987356971,0.21691,92204.0,92187.0,0.01454085]
[1740987356972,0.216938,92192.0,92187.0,0.01454085]
[1740987357274,0.216938,92192.0,92182.0,0.16272]
[1740987357275,0.001,92191.0,92182.0,0.01454085]
[1740987357501,0.001,92194.0,92193.0,0.17724285]
[1740987357665,0.0217704,92215.0,92194.0,0.01454085]
[1740987357866,0.001,92214.0,92208.0,0.01454085]
[1740987358083,0.001,92214.0,92193.0,0.01454085]
[1740987358228,0.001,92214.0,92203.0,0.01454085]
[1740987358430,0.001,92214.0,92196.0,0.162696]
[1740987358629,0.001,92214.0,92192.0,0.162703]
[1740987358839,0.001,92214.0,92184.0,0.01088177]
[1740987358840,0.217887,92214.0,92194.0,0.1627]
[1740987359044,0.001,92214.0,92213.0,0.01454085]
[1740987359350,0.001,92226.0,92213.0,0.00040152]
[1740987359496,0.02182479,92224.0,92219.0,0.162656]
[1740987359692,0.001,92223.0,92220.0,0.01454085]
[1740987359893,0.001,92223.0,92222.0,0.17719085]
[1740987360103,0.0778,92246.0,92221.0,0.01454085]
[1740987360104,0.16264,92228.0,92221.0,0.01454085]
[1740987360305,0.162665,92214.0,92213.0,0.00040152]
[1740987360842,0.02274647,92227.0,92213.0,0.00040152]
[1740987360986,0.001,92227.0,92213.0,0.00040152]
[1740987361193,0.001,92232.0,92215.0,0.01454085]
[1740987361395,0.162644,92226.0,92213.0,0.00040152]
[1740987361603,0.001,92232.0,92213.0,0.00040152]
[1740987361604,0.001,92232.0,92224.0,0.01454085]
[1740987361835,0.001,92232.0,92222.0,0.216867]
[1740987362035,0.09661332,92240.0,92239.0,0.17716185]
[1740987363521,0.09661332,92240.0,92239.0,0.52556185]
[1740987363794,0.02148104,92272.0,92234.0,0.01094293]
[1740987363795,0.09661332,92267.0,92234.0,0.01094293]
[1740987363975,0.01280944,92266.0,92246.0,0.01454085]
[1740987364188,0.162606,92248.0,92246.0,0.01454085]
[1740987364352,0.001,92247.0,92234.0,0.01454085]
[1740987364569,0.001,92259.0,92254.0,0.01454085]
[1740987364893,0.162592,92255.0,92254.0,0.01454085]
[1740987365309,0.00012003,92255.0,92244.0,0.01454085]
[1740987365467,0.00112003,92255.0,92244.0,0.01454085]
[1740987365669,0.00112003,92255.0,92240.0,0.01454085]
[1740987365970,0.16371403,92255.0,92242.0,0.01454085]
[1740987366165,0.00112003,92255.0,92241.0,0.01454085]
[1740987366366,0.00012003,92255.0,92254.0,0.17713485]
[1740987367451,0.00012003,92255.0,92254.0,0.47713485]
[1740987369043,0.00012003,92255.0,92230.0,0.27182642]
[1740987369274,0.162595,92254.0,92243.0,0.162613]
[1740987369466,0.001,92253.0,92226.0,0.09108628]
[1740987369643,0.001,92253.0,92239.0,0.162619]
[1740987369823,0.001,92253.0,92221.0,0.13908]
[1740987369824,0.216797,92252.0,92240.0,0.3]
[1740987370031,0.162602,92250.0,92241.0,0.162616]
[1740987370223,0.001,92249.0,92221.0,0.13908]
[1740987370429,0.00012003,92255.0,92221.0,0.13908]
[1740987370430,0.02215763,92254.0,92221.0,0.09048]
[1740987370632,0.16262,92240.0,92221.0,0.09048]
[1740987370830,0.03041041,92253.0,92221.0,0.09048]
[1740987370831,0.001,92239.0,92229.0,0.21685]
[1740987371031,0.001,92239.0,92230.0,0.01454085]
[1740987371234,0.162636,92230.0,92221.0,0.162651]
[1740987371435,0.001,92229.0,92202.0,0.17264]
[1740987371732,0.001,92249.0,92217.0,0.162659]
[1740987371934,0.001,92249.0,92202.0,0.17264]
[1740987371935,0.018891,92248.0,92202.0,0.17264]
[1740987372135,0.018891,92248.0,92192.0,0.216937]
[1740987372136,0.162647,92224.0,92192.0,0.216937]
[1740987372333,0.163647,92224.0,92209.0,0.162673]
[1740987372539,0.163647,92224.0,92210.0,0.216896]
[1740987372751,0.163647,92224.0,92192.0,0.216938]
[1740987372752,0.001,92224.0,92216.0,0.216881]
[1740987372951,0.001,92229.0,92228.0,0.16264]
[1740987373152,0.216802,92250.0,92220.0,0.01454085]
[1740987373496,0.00011999,92229.0,92228.0,0.17718085]
[1740987373889,0.00011999,92229.0,92228.0,0.01454085]
[1740987374250,0.00011999,92229.0,92228.0,0.17718085]
[1740987375801,0.00011999,92229.0,92228.0,0.01454085]
[1740987376008,0.00011999,92229.0,92223.0,0.0001704]
[1740987376407,0.00011999,92229.0,92228.0,0.17718085]
[1740987379248,0.00011999,92229.0,92228.0,0.01454085]
[1740987379492,0.00011999,92229.0,92228.0,0.17718085]
[1740987379896,0.00011999,92229.0,92228.0,0.01454085]
[1740987380106,0.00011999,92229.0,92228.0,0.47718085]
[1740987380362,0.00011999,92229.0,92228.0,0.64638085]
[1740987380950,0.0003412,92236.0,92235.0,0.462628]
[1740987381104,0.0003412,92236.0,92235.0,0.47696885]
[1740987382057,2e-07,92236.0,92235.0,0.56736885]
[1740987382276,0.1237,92301.0,92289.0,0.162532]
[1740987382418,0.0462,92301.0,92289.0,0.01454085]
[1740987382623,0.25926475,92290.0,92289.0,0.01454085]
[1740987382830,0.25926475,92290.0,92268.0,0.3]
[1740987383030,0.21671,92289.0,92268.0,0.3]
[1740987383230,0.162532,92289.0,92269.0,0.01454085]
[1740987383452,0.09673375,92290.0,92285.0,0.01454085]
[1740987383653,0.09673375,92290.0,92268.0,0.3]
[1740987383854,0.09673375,92290.0,92267.0,0.01454085]
[1740987384090,0.09673375,92290.0,92269.0,0.216757]
[1740987384251,0.162547,92281.0,92273.0,0.01454085]
[1740987384453,0.162559,92274.0,92273.0,0.01454085]
[1740987384653,0.001,92274.0,92263.0,0.01454085]
[1740987385035,0.001,92274.0,92262.0,0.01454085]
[1740987385261,0.001,92274.0,92266.0,0.31454085]
[1740987385554,0.162552,92278.0,92266.0,0.3]
[1740987385733,0.001,92277.0,92267.0,0.01454085]
[1740987385943,0.001,92286.0,92266.0,0.3]
[1740987386142,0.001,92286.0,92285.0,0.162539]
[1740987386341,0.162532,92289.0,92286.0,0.01454085]
[1740987386526,0.001,92288.0,92271.0,0.23129285]
[1740987386731,0.001,92288.0,92285.0,0.01454085]
[1740987387164,0.001,92288.0,92282.0,0.17708385]
[1740987387369,0.001,92288.0,92284.0,0.01454085]
[1740987387686,0.001,92289.0,92284.0,0.17708185]
[1740987387918,0.001,92289.0,92286.0,0.01454085]
[1740987388352,0.00046163,92290.0,92289.0,0.17707285]
[1740987388886,0.00046163,92290.0,92289.0,0.47707285]
[1740987389301,0.00046163,92290.0,92289.0,0.56743285]
[1740987390291,0.00046163,92290.0,92289.0,0.40490085]
[1740987390496,0.00046163,92290.0,92289.0,0.56743285]
[1740987390727,0.00046163,92290.0,92289.0,0.31454085]
[1740987390925,0.00046163,92290.0,92270.0,0.27182642]
[1740987391127,0.00046163,92290.0,92252.0,0.0492]
[1740987391128,0.3241,92289.0,92260.0,0.27182642]
[1740987391326,0.001,92288.0,92260.0,0.27182642]
[1740987391623,0.162566,92271.0,92261.0,0.01454085]
[1740987391808,0.3241,92271.0,92270.0,0.162566]
[1740987392016,0.3241,92271.0,92268.0,0.216759]
[1740987392215,0.3241,92271.0,92270.0,0.162566]
[1740987392875,0.3241,92271.0,92270.0,0.17710685]
[1740987394235,0.3241,92289.0,92288.0,0.17707485]
[1740987394407,0.0464,92312.0,92289.0,0.17707285]
[1740987394408,0.3241,92298.0,92289.0,0.17707285]
[1740987395330,0.3241,92298.0,92289.0,0.47707285]
[1740987396735,0.00026163,92290.0,92289.0,0.47707285]
[1740987398026,0.00026163,92290.0,92289.0,0.56735285]
[1740987398484,6.3e-07,92290.0,92289.0,0.52707285]
[1740987398686,0.00013103,92299.0,92298.0,0.462517]
[1740987398890,0.00013103,92299.0,92298.0,0.47705785]
[1740987399029,4e-07,92305.0,92304.0,0.52704685]
[1740987399429,0.0001307,92314.0,92313.0,0.46249]
[1740987399637,6e-07,92314.0,92313.0,0.61731085]
[1740987400034,6e-07,92314.0,92313.0,0.56731085]
[1740987400446,6e-07,92314.0,92313.0,0.63957975]
[1740987401156,6e-07,92314.0,92313.0,0.54929975]
[1740987401338,6e-07,92314.0,92313.0,0.63957975]
[1740987401555,6e-07,92314.0,92313.0,0.68957975]
[1740987401940,6e-07,92314.0,92313.0,0.63957975]
[1740987402162,6e-07,92314.0,92313.0,0.68957975]
[1740987402690,6e-07,92314.0,92313.0,0.63957975]
[1740987404319,6e-07,92314.0,92313.0,0.58957975]
[1740987405793,6e-07,92314.0,92313.0,0.58953975]
[1740987405988,6e-07,92314.0,92313.0,0.63953975]
[1740987407127,6e-07,92314.0,92313.0,0.58953975]
[1740987407644,6e-07,92314.0,92313.0,0.63953975]
[1740987407845,6e-07,92314.0,92313.0,0.58953975]
[1740987408046,6e-07,92314.0,92313.0,0.5749989]
[1740987408405,6e-07,92314.0,92313.0,0.58953975]
[1740987409120,0.0011266,92314.0,92313.0,0.58953975]
[1740987411310,0.0011266,92314.0,92313.0,0.16249]
[1740987411626,0.0011266,92314.0,92313.0,0.17703085]
[1740987411879,0.0011266,92314.0,92313.0,0.47703085]
[1740987413087,0.0011266,92314.0,92313.0,0.17703085]
[1740987413286,0.0011266,92314.0,92313.0,0.16249]
[1740987413785,0.0011266,92314.0,92313.0,0.17703085]
[1740987415576,0.0011266,92314.0,92313.0,0.17854725]
[1740987415772,0.0011266,92314.0,92313.0,0.17703085]
[1740987416476,0.0011266,92314.0,92313.0,0.17854725]
[1740987419113,0.0011266,92314.0,92313.0,0.17703085]
[1740987420487,0.0011266,92314.0,92313.0,0.26715085]